fUST/lending_fUST_20240824
["ID","MTS","AMOUNT","RATE_DAILY","PERIOD"]
[335764609,1724482248651,-1461.9,0.00013971,2]
[335764611,1724482248660,-1461.9,0.00013971,2]
[335764613,1724482248669,-1462.0,0.00013971,2]
[335764615,1724482248679,-1066.84,0.00013971,2]
[335764617,1724482248688,-1066.84,0.00013971,2]
[335764619,1724482248697,-1066.84,0.00013971,2]
[335764621,1724482248706,-1066.84,0.00013971,2]
[335764623,1724482248715,-1066.84,0.00013971,2]
[335764625,1724482248725,-1066.84,0.00013971,2]
[335764627,1724482248735,-1066.84,0.00013971,2]
[335764630,1724482248744,-1066.93815425,0.00013971,2]
[335764632,1724482248754,-151.386232,0.00013972,2]
[335764634,1724482248763,-204.026499,0.00013972,2]
[335764636,1724482248773,-204.026499,0.00013972,2]
[335764638,1724482248782,-151.0,0.00013972,2]
[335764640,1724482248791,-151.0,0.00013972,2]
[335764642,1724482248801,-151.0,0.00013972,2]
[335764644,1724482248811,-151.0,0.00013972,2]
[335764646,1724482248821,-151.0,0.00013972,2]
[335764648,1724482248831,-746.010748,0.00013972,2]
[335764650,1724482248841,-746.010748,0.00013972,2]
[335764652,1724482248850,-220.157913,0.00013972,2]
[335764654,1724482248859,-220.157913,0.00013972,2]
[335764656,1724482248868,-220.157913,0.00013972,2]
[335764658,1724482248878,-220.157913,0.00013972,2]
[335764660,1724482248887,-151.0,0.00013972,2]
[335764662,1724482248897,-151.0,0.00013972,2]
[335764664,1724482248906,-261.313277,0.00013972,2]
[335764666,1724482248916,-261.313277,0.00013972,2]
[335764668,1724482248927,-151.0,0.00013972,2]
[335764670,1724482248937,-151.0,0.00013972,2]
[335764672,1724482248947,-151.0,0.00013972,2]
[335764674,1724482248957,-151.0,0.00013972,2]
[335764676,1724482248968,-151.0,0.00013972,2]
[335764678,1724482248979,-151.0,0.00013972,2]
[335764680,1724482248988,-151.0,0.00013972,2]
[335764682,1724482248998,-151.0,0.00013972,2]
[335764684,1724482249008,-178.124472,0.00013972,2]
[335764686,1724482249018,-178.124472,0.00013972,2]
[335764688,1724482249028,-178.124472,0.00013972,2]
[335764690,1724482249038,-178.124472,0.00013972,2]
[335764692,1724482249050,-332.245829,0.00013972,2]
[335764694,1724482249060,-332.245829,0.00013972,2]
[335764696,1724482249071,-151.0,0.00013972,2]
[335764698,1724482249081,-151.338408,0.00013972,2]
[335764700,1724482249090,-180.571269,0.00013972,2]
[335764702,1724482249100,-180.571269,0.00013972,2]
[335764704,1724482249110,-180.571269,0.00013972,2]
[335764706,1724482249121,-180.571269,0.00013972,2]
[335764708,1724482249132,-255.01063183,0.00013972,2]
[335764710,1724482249144,-500.0,0.00013972,2]
[335764712,1724482249154,-531.46188405,0.00013972,2]
[335764714,1724482249164,-500.0,0.00013972,2]
[335764716,1724482249174,-500.0,0.00013972,2]
[335764718,1724482249188,-801.16,0.00013972,2]
[335764720,1724482249202,-651.36,0.00013972,2]
[335764722,1724482249212,-712.66,0.00013972,2]
[335764724,1724482249223,-1083.37,0.00013972,2]
[335764726,1724482249233,-512.19,0.00013972,2]
[335764728,1724482249243,-680.87,0.00013972,2]
[335764730,1724482249253,-500.0,0.00013972,2]
[335764732,1724482249263,-1051.52,0.00013972,2]
[335764734,1724482249273,-500.0,0.00013972,2]
[335764736,1724482249283,-500.0,0.00013972,2]
[335764738,1724482249292,-500.0,0.00013972,2]
[335764740,1724482249301,-500.0,0.00013972,2]
[335764742,1724482249312,-170.47595762,0.00013972,2]
[335764744,1724482249322,-500.0,0.00013972,2]
[335764746,1724482249332,-500.0,0.00013972,2]
[335764748,1724482249342,-500.0,0.00013972,2]
[335764750,1724482249353,-500.0,0.00013972,2]
[335764752,1724482249364,-500.0,0.00013972,2]
[335764754,1724482249373,-500.0,0.00013972,2]
[335764756,1724482249383,-500.0,0.00013972,2]
[335764758,1724482249393,-500.0,0.00013972,2]
[335764760,1724482249403,-500.0,0.00013972,2]
[335764762,1724482249413,-500.0,0.00013972,2]
[335764764,1724482249422,-684.8,0.00013972,2]
[335764766,1724482249434,-500.0,0.00013972,2]
[335764768,1724482249444,-500.0,0.00013972,2]
[335764770,1724482249455,-500.0,0.00013972,2]
[335764772,1724482249464,-500.0,0.00013972,2]
[335764774,1724482249474,-500.0,0.00013972,2]
[335764776,1724482249483,-530.41,0.00013972,2]
[335764778,1724482249494,-151.0,0.00013972,2]
[335764780,1724482249504,-516.89881684,0.00013972,2]
[335764782,1724482249514,-151.0,0.00013972,2]
[335764784,1724482249525,-1497.92,0.00013972,2]
[335764786,1724482249535,-500.0,0.00013972,2]
[335764788,1724482249544,-500.0,0.00013972,2]
[335764790,1724482249553,-500.0,0.00013972,2]
[335764792,1724482249563,-500.0,0.00013972,2]
[335764794,1724482249573,-500.0,0.00013972,2]
[335764796,1724482249582,-500.0,0.00013972,2]
[335764798,1724482249592,-500.0,0.00013972,2]
[335764800,1724482249601,-224.03851653,0.00013972,2]
[335764802,1724482249611,-500.0,0.00013972,2]
[335764804,1724482249621,-500.0,0.00013972,2]
[335764806,1724482249631,-500.0,0.00013972,2]
[335764808,1724482249640,-500.0,0.00013972,2]
[335764810,1724482249649,-500.0,0.00013972,2]
[335764812,1724482249658,-500.0,0.00013972,2]
[335764814,1724482249668,-1158.24,0.00013972,2]
[335764816,1724482249679,-500.0,0.00013972,2]
[335764818,1724482249688,-2057.652411,0.00013972,2]
[335764820,1724482249698,-500.0,0.00013972,2]
[335764822,1724482249707,-2057.652411,0.00013972,2]
[335764824,1724482249716,-500.0,0.00013972,2]
[335764826,1724482249726,-500.0,0.00013972,2]
[335764828,1724482249736,-500.0,0.00013972,2]
[335764830,1724482249746,-618.636103,0.00013972,2]
[335764832,1724482249756,-500.0,0.00013972,2]
[335764835,1724482249766,-618.636103,0.00013972,2]
[335764837,1724482249776,-500.0,0.00013972,2]
[335764839,1724482249785,-500.0,0.00013972,2]
[335764841,1724482249794,-500.0,0.00013972,2]
[335764843,1724482249803,-151.0,0.00013972,2]
[335764845,1724482249813,-500.0,0.00013972,2]
[335764847,1724482249823,-500.0,0.00013972,2]
[335764849,1724482249832,-151.0,0.00013972,2]
[335764851,1724482249841,-151.0,0.00013972,2]
[335764853,1724482249851,-1182.83,0.00013972,2]
[335764855,1724482249860,-500.0,0.00013972,2]
[335764857,1724482249870,-500.0,0.00013972,2]
[335764859,1724482249879,-500.0,0.00013972,2]
[335764860,1724482249888,-500.0,0.00013972,2]
[335764863,1724482249898,-500.0,0.00013972,2]
[335764864,1724482249907,-500.0,0.00013972,2]
[335764866,1724482249917,-1303.25,0.00013972,2]
[335764868,1724482249927,-500.0,0.00013972,2]
[335764870,1724482249936,-500.0,0.00013972,2]
[335764873,1724482249947,-151.0,0.00013972,2]
[335764875,1724482249958,-500.0,0.00013972,2]
[335764877,1724482249969,-500.0,0.00013972,2]
[335764879,1724482249978,-151.0,0.00013972,2]
[335764881,1724482249988,-151.0,0.00013972,2]
[335764883,1724482250000,-500.0,0.00013972,2]
[335764885,1724482250010,-151.0,0.00013972,2]
[335764887,1724482250020,-500.0,0.00013972,2]
[335764889,1724482250029,-1074.4,0.00013972,2]
[335764891,1724482250039,-688.79,0.00013972,2]
[335764893,1724482250048,-500.0,0.00013972,2]
[335764895,1724482250059,-500.0,0.00013972,2]
[335764897,1724482250070,-500.0,0.00013972,2]
[335764899,1724482250080,-707.81,0.00013972,2]
[335764901,1724482250089,-500.0,0.00013972,2]
[335764903,1724482250099,-500.0,0.00013972,2]
[335764905,1724482250108,-500.0,0.00013972,2]
[335764907,1724482250119,-181.06987993,0.00013972,2]
[335764909,1724482250128,-704.2,0.00013972,2]
[335764911,1724482250137,-151.0,0.00013972,2]
[335764913,1724482250148,-500.0,0.00013972,2]
[335764915,1724482250160,-151.0,0.00013972,2]
[335764916,1724482250169,-500.0,0.00013972,2]
[335764917,1724482250179,-501.98071286,0.00013972,2]
[335764918,1724482250188,-151.0,0.00013972,2]
[335764919,1724482250198,-516.71,0.00013972,2]
[335764920,1724482250207,-151.0,0.00013972,2]
[335764921,1724482250216,-1394.76,0.00013972,2]
[335764922,1724482250225,-650.059302,0.00013972,2]
[335764923,1724482250234,-726.08,0.00013972,2]
[335764924,1724482250244,-650.059302,0.00013972,2]
[335764925,1724482250253,-650.059302,0.00013972,2]
[335764926,1724482250262,-500.0,0.00013972,2]
[335764927,1724482250271,-601.02,0.00013972,2]
[335764928,1724482250280,-527.63769833,0.00013972,2]
[335764930,1724482250290,-268.195579,0.00013972,2]
[335764932,1724482250299,-268.195579,0.00013972,2]
[335764934,1724482250308,-3296.64,0.00013972,2]
[335764936,1724482250318,-268.195579,0.00013972,2]
[335764938,1724482250327,-844.04,0.00013972,2]
[335764940,1724482250336,-268.195579,0.00013972,2]
[335764942,1724482250345,-500.0,0.00013972,2]
[335764944,1724482250354,-572.82,0.00013972,2]
[335764946,1724482250363,-1025.39,0.00013972,2]
[335764948,1724482250373,-3001.05,0.00013972,2]
[335764950,1724482250382,-500.0,0.00013972,2]
[335764952,1724482250391,-304.344614,0.00013972,2]
[335764954,1724482250401,-304.344614,0.00013972,2]
[335764956,1724482250410,-500.0,0.00013972,2]
[335764958,1724482250420,-1457.55,0.00013972,2]
[335764960,1724482250430,-1183.75,0.00013972,2]
[335764962,1724482250439,-304.344614,0.00013972,2]
[335764964,1724482250452,-304.344614,0.00013972,2]
[335764966,1724482250463,-500.0,0.00013972,2]
[335764968,1724482250472,-500.0,0.00013972,2]
[335764970,1724482250482,-804.6,0.00013972,2]
[335764972,1724482250491,-511.99630393,0.00013972,2]
[335764974,1724482250501,-151.0,0.00013972,2]
[335764990,1724482250649,-151.0,0.00013972,2]
[335764992,1724482250659,-2514.523757,0.00013972,2]
[335764994,1724482250668,-647.31,0.00013972,2]
[335764996,1724482250677,-892.0,0.00013972,2]
[335764998,1724482250686,-151.0,0.00013972,2]
[335765000,1724482250695,-2514.523757,0.00013972,2]
[335765002,1724482250705,-151.0,0.00013972,2]
[335765004,1724482250714,-500.0,0.00013972,2]
[335765006,1724482250723,-605.47,0.00013972,2]
[335765008,1724482250733,-2514.523757,0.00013972,2]
[335765010,1724482250742,-2514.523757,0.00013972,2]
[335765012,1724482250751,-575.29,0.00013972,2]
[335765014,1724482250760,-702.74,0.00013972,2]
[335765016,1724482250769,-2909.75,0.00013972,2]
[335765018,1724482250779,-500.0,0.00013972,2]
[335765020,1724482250788,-500.0,0.00013972,2]
[335765022,1724482250797,-823.45,0.00013972,2]
[335765024,1724482250806,-1948.03,0.00013972,2]
[335765026,1724482250816,-866.45,0.00013972,2]
[335765028,1724482250825,-567.45,0.00013972,2]
[335765030,1724482250835,-500.0,0.00013972,2]
[335765032,1724482250844,-500.0,0.00013972,2]
[335765034,1724482250853,-576.08,0.00013972,2]
[335765036,1724482250863,-500.0,0.00013972,2]
[335765038,1724482250872,-500.0,0.00013972,2]
[335765040,1724482250882,-500.0,0.00013972,2]
[335765042,1724482250892,-475.87617,0.00013972,2]
[335765044,1724482250901,-500.0,0.00013972,2]
[335765046,1724482250911,-475.87617,0.00013972,2]
[335765048,1724482250920,-500.0,0.00013972,2]
[335765050,1724482250935,-2248.72,0.00013972,2]
[335765052,1724482250949,-503.17953657,0.00013972,2]
[335765054,1724482250958,-500.0,0.00013972,2]
[335765056,1724482250967,-500.0,0.00013972,2]
[335765058,1724482250976,-500.0,0.00013972,2]
[335765060,1724482250986,-500.0,0.00013972,2]
[335765062,1724482250995,-501.54686121,0.00013972,2]
[335765064,1724482251004,-740.79,0.00013972,2]
[335765066,1724482251013,-741.25,0.00013972,2]
[335765068,1724482251022,-500.0,0.00013972,2]
[335765070,1724482251032,-500.0,0.00013972,2]
[335765072,1724482251041,-500.0,0.00013972,2]
[335765074,1724482251050,-500.0,0.00013972,2]
[335765076,1724482251060,-500.0,0.00013972,2]
[335765078,1724482251069,-500.0,0.00013972,2]
[335765080,1724482251079,-500.0,0.00013972,2]
[335765082,1724482251089,-515.85516115,0.00013972,2]
[335765084,1724482251098,-2255.51,0.00013972,2]
[335765086,1724482251107,-1328.89,0.00013972,2]
[335765088,1724482251118,-789.77,0.00013972,2]
[335765090,1724482251127,-563.37,0.00013972,2]
[335765092,1724482251137,-501.38933766,0.00013972,2]
[335765095,1724482251147,-864.33,0.00013972,2]
[335765097,1724482251156,-500.0,0.00013972,2]
[335765099,1724482251166,-500.0,0.00013972,2]
[335765101,1724482251175,-766.22,0.00013972,2]
[335765103,1724482251187,-500.0,0.00013972,2]
[335765105,1724482251196,-518.14,0.00013972,2]
[335765107,1724482251205,-844.96,0.00013972,2]
[335765109,1724482251214,-1935.6,0.00013972,2]
[335765111,1724482251223,-500.0,0.00013972,2]
[335765113,1724482251232,-778.084569,0.00013972,2]
[335765115,1724482251242,-778.084569,0.00013972,2]
[335765117,1724482251251,-778.084569,0.00013972,2]
[335765119,1724482251261,-565.21,0.00013972,2]
[335765121,1724482251270,-500.0,0.00013972,2]
[335765123,1724482251279,-500.0,0.00013972,2]
[335765125,1724482251288,-500.0,0.00013972,2]
[335765127,1724482251298,-784.752937,0.00013972,2]
[335765129,1724482251306,-778.084569,0.00013972,2]
[335765131,1724482251316,-784.752937,0.00013972,2]
[335765133,1724482251325,-778.084569,0.00013972,2]
[335765135,1724482251335,-500.0,0.00013972,2]
[335765137,1724482251344,-778.084569,0.00013972,2]
[335765139,1724482251354,-500.0,0.00013972,2]
[335765141,1724482251363,-500.0,0.00013972,2]
[335765143,1724482251372,-2446.63,0.00013972,2]
[335765145,1724482251381,-896.86,0.00013972,2]
[335765147,1724482251391,-746.43,0.00013972,2]
[335765149,1724482251400,-500.0,0.00013972,2]
[335765151,1724482251410,-607.28,0.00013972,2]
[335765153,1724482251420,-1461.56,0.00013972,2]
[335765155,1724482251430,-617.09,0.00013972,2]
[335765157,1724482251439,-500.0,0.00013972,2]
[335765159,1724482251455,-500.0,0.00013972,2]
[335765161,1724482251464,-2761.86,0.00013972,2]
[335765163,1724482251473,-1755.95,0.00013972,2]
[335765165,1724482251483,-500.0,0.00013972,2]
[335765167,1724482251494,-500.0,0.00013972,2]
[335765169,1724482251503,-527.49750531,0.00013972,2]
[335765171,1724482251512,-2104.39,0.00013972,2]
[335765173,1724482251524,-743.35,0.00013972,2]
[335765175,1724482251533,-669.47,0.00013972,2]
[335765177,1724482251543,-535.43,0.00013972,2]
[335765179,1724482251552,-1016.56,0.00013972,2]
[335765181,1724482251562,-500.0,0.00013972,2]
[335765183,1724482251571,-500.0,0.00013972,2]
[335765185,1724482251580,-1119.008387,0.00013972,2]
[335765187,1724482251590,-1119.008387,0.00013972,2]
[335765189,1724482251599,-500.0,0.00013972,2]
[335765191,1724482251608,-817.77,0.00013972,2]
[335765193,1724482251620,-500.0,0.00013972,2]
[335765196,1724482251629,-1119.008387,0.00013972,2]
[335765198,1724482251641,-1119.008387,0.00013972,2]
[335765200,1724482251651,-500.0,0.00013972,2]
[335765202,1724482251662,-514.956958,0.00013972,2]
[335765204,1724482251671,-285.92282374,0.00013972,2]
[335765206,1724482251681,-514.956958,0.00013972,2]
[335765208,1724482251691,-1223.34,0.00013972,2]
[335765210,1724482251702,-514.956958,0.00013972,2]
[335765212,1724482251713,-500.0,0.00013972,2]
[335765214,1724482251724,-514.956958,0.00013972,2]
[335765216,1724482251734,-412.325623,0.00013972,2]
[335765218,1724482251744,-500.0,0.00013972,2]
[335765220,1724482251753,-412.325623,0.00013972,2]
[335765222,1724482251762,-756.43,0.00013972,2]
[335765224,1724482251772,-412.325623,0.00013972,2]
[335765226,1724482251783,-412.325623,0.00013972,2]
[335765228,1724482251794,-412.325623,0.00013972,2]
[335765230,1724482251804,-412.325623,0.00013972,2]
[335765232,1724482251813,-961.73,0.00013972,2]
[335765234,1724482251824,-987.1,0.00013972,2]
[335765236,1724482251834,-500.0,0.00013972,2]
[335765238,1724482251845,-500.0,0.00013972,2]
[335765240,1724482251855,-226.45830538,0.00013972,2]
[335765242,1724482251865,-151.0,0.00013972,2]
[335765244,1724482251875,-151.0,0.00013972,2]
[335765246,1724482251884,-151.0,0.00013972,2]
[335765248,1724482251894,-2094.46,0.00013972,2]
[335765250,1724482251903,-993.042583,0.00013972,2]
[335765252,1724482251912,-993.042583,0.00013972,2]
[335765254,1724482251922,-993.042583,0.00013972,2]
[335765256,1724482251931,-1068.44,0.00013972,2]
[335765258,1724482251941,-526.58,0.00013972,2]
[335765260,1724482251950,-500.0,0.00013972,2]
[335765262,1724482251959,-500.0,0.00013972,2]
[335765264,1724482251968,-500.0,0.00013972,2]
[335765266,1724482251978,-993.042583,0.00013972,2]
[335765268,1724482251987,-993.042583,0.00013972,2]
[335765270,1724482251997,-993.042583,0.00013972,2]
[335765272,1724482252006,-500.0,0.00013972,2]
[335765274,1724482252015,-500.0,0.00013972,2]
[335765276,1724482252024,-829.9,0.00013972,2]
[335765278,1724482252034,-500.0,0.00013972,2]
[335765280,1724482252043,-500.0,0.00013972,2]
[335765282,1724482252052,-964.75,0.00013972,2]
[335765284,1724482252062,-500.0,0.00013972,2]
[335765286,1724482252072,-500.0,0.00013972,2]
[335765288,1724482252081,-500.0,0.00013972,2]
[335765290,1724482252090,-500.0,0.00013972,2]
[335765292,1724482252099,-415.72,0.00013972,2]
[335765294,1724482252109,-500.0,0.00013972,2]
[335765296,1724482252118,-858.76,0.00013972,2]
[335765298,1724482252127,-1355.66,0.00013972,2]
[335765299,1724482252137,-573.59354109,0.00013972,2]
[335765301,1724482252146,-1266.04,0.00013972,2]
[335765304,1724482252157,-1303.430363,0.00013972,2]
[335765306,1724482252166,-1303.430363,0.00013972,2]
[335765307,1724482252176,-1303.430363,0.00013972,2]
[335765309,1724482252185,-261.17532049,0.00013972,2]
[335765310,1724482252195,-1303.430363,0.00013972,2]
[335765311,1724482252204,-1303.430363,0.00013972,2]
[335765312,1724482252213,-1303.430363,0.00013972,2]
[335765313,1724482252223,-151.0,0.00013972,2]
[335765314,1724482252232,-151.0,0.00013972,2]
[335765316,1724482252242,-294.894676,0.00013972,2]
[335765318,1724482252251,-523.87,0.00013972,2]
[335765320,1724482252261,-500.0,0.00013972,2]
[335765322,1724482252270,-1201.76,0.00013972,2]
[335765324,1724482252280,-754.42,0.00013972,2]
[335765325,1724482252289,-500.0,0.00013972,2]
[335765327,1724482252298,-657.63,0.00013972,2]
[335765330,1724482252308,-500.0,0.00013972,2]
[335765332,1724482252318,-500.0,0.00013972,2]
[335765334,1724482252328,-500.0,0.00013972,2]
[335765336,1724482252338,-927.54,0.00013972,2]
[335765338,1724482252348,-957.88,0.00013972,2]
[335765340,1724482252359,-500.0,0.00013972,2]
[335765342,1724482252369,-655.71,0.00013972,2]
[335765344,1724482252378,-520.93836878,0.00013972,2]
[335765346,1724482252387,-500.0,0.00013972,2]
[335765348,1724482252397,-500.0,0.00013972,2]
[335765350,1724482252407,-500.0,0.00013972,2]
[335765352,1724482252416,-500.0,0.00013972,2]
[335765354,1724482252426,-1527.48,0.00013972,2]
[335765356,1724482252435,-3002.73,0.00013972,2]
[335765358,1724482252449,-501.74827998,0.00013972,2]
[335765360,1724482252459,-500.0,0.00013972,2]
[335765362,1724482252468,-846.49,0.00013972,2]
[335765364,1724482252477,-500.0,0.00013972,2]
[335765366,1724482252488,-1433.870322,0.00013972,2]
[335765368,1724482252498,-1433.870322,0.00013972,2]
[335765370,1724482252507,-1433.870322,0.00013972,2]
[335765372,1724482252516,-638.78,0.00013972,2]
[335765374,1724482252528,-500.0,0.00013972,2]
[335765376,1724482252537,-1433.870322,0.00013972,2]
[335765378,1724482252546,-1433.870322,0.00013972,2]
[335765380,1724482252556,-1433.870322,0.00013972,2]
[335765382,1724482252566,-1571.86,0.00013972,2]
[335765384,1724482252576,-728.39,0.00013972,2]
[335765385,1724482252586,-500.0,0.00013972,2]
[335765386,1724482252596,-741.08,0.00013972,2]
[335765387,1724482252605,-500.0,0.00013972,2]
[335765388,1724482252615,-1963.71,0.00013972,2]
[335765390,1724482252624,-791.63,0.00013972,2]
[335765392,1724482252633,-500.0,0.00013972,2]
[335765394,1724482252642,-500.0,0.00013972,2]
[335765396,1724482252652,-500.0,0.00013972,2]
[335765398,1724482252662,-500.0,0.00013972,2]
[335765400,1724482252671,-1366.53,0.00013972,2]
[335765402,1724482252681,-504.75790496,0.00013972,2]
[335765404,1724482252691,-500.0,0.00013972,2]
[335765406,1724482252700,-500.0,0.00013972,2]
[335765408,1724482252711,-500.0,0.00013972,2]
[335765410,1724482252720,-1938.93,0.00013972,2]
[335765412,1724482252729,-500.0,0.00013972,2]
[335765414,1724482252738,-500.0,0.00013972,2]
[335765416,1724482252747,-500.0,0.00013972,2]
[335765418,1724482252757,-500.0,0.00013972,2]
[335765420,1724482252766,-500.0,0.00013972,2]
[335765422,1724482252776,-151.0,0.00013972,2]
[335765424,1724482252785,-151.0,0.00013972,2]
[335765426,1724482252794,-151.0,0.00013972,2]
[335765428,1724482252804,-690.15,0.00013972,2]
[335765430,1724482252813,-500.0,0.00013972,2]
[335765432,1724482252823,-197.123887,0.00013972,2]
[335765434,1724482252832,-730.79,0.00013972,2]
[335765436,1724482252841,-197.123887,0.00013972,2]
[335765438,1724482252851,-500.0,0.00013972,2]
[335765440,1724482252861,-500.0,0.00013972,2]
[335765442,1724482252870,-197.123887,0.00013972,2]
[335765444,1724482252880,-671.17,0.00013972,2]
[335765446,1724482252889,-197.123887,0.00013972,2]
[335765448,1724482252898,-197.123887,0.00013972,2]
[335765450,1724482252908,-197.123887,0.00013972,2]
[335765452,1724482252917,-1169.43,0.00013972,2]
[335765454,1724482252927,-854.55,0.00013972,2]
[335765456,1724482252937,-500.0,0.00013972,2]
[335765458,1724482252946,-500.0,0.00013972,2]
[335765460,1724482252956,-500.0,0.00013972,2]
[335765462,1724482252966,-917.43,0.00013972,2]
[335765465,1724482252975,-500.0,0.00013972,2]
[335765467,1724482252986,-500.0,0.00013972,2]
[335765469,1724482252996,-500.0,0.00013972,2]
[335765471,1724482253005,-500.0,0.00013972,2]
[335765473,1724482253015,-962.7,0.00013972,2]
[335765475,1724482253024,-500.0,0.00013972,2]
[335765477,1724482253035,-508.45,0.00013972,2]
[335765479,1724482253044,-871.92,0.00013972,2]
[335765481,1724482253054,-533.89,0.00013972,2]
[335765483,1724482253065,-409.3967305,0.00013972,2]
[335765485,1724482253075,-885.32,0.00013972,2]
[335765502,1724482253222,-2627.275653,0.00013972,2]
[335765504,1724482253232,-2627.275653,0.00013972,2]
[335765506,1724482253241,-2627.275653,0.00013972,2]
[335765508,1724482253251,-500.0,0.00013972,2]
[335765510,1724482253260,-2627.275653,0.00013972,2]
[335765512,1724482253269,-2627.275653,0.00013972,2]
[335765514,1724482253279,-607.35,0.00013972,2]
[335765517,1724482253288,-2627.275653,0.00013972,2]
[335765519,1724482253298,-500.0,0.00013972,2]
[335765521,1724482253307,-500.0,0.00013972,2]
[335765523,1724482253316,-931.08,0.00013972,2]
[335765525,1724482253326,-500.0,0.00013972,2]
[335765527,1724482253335,-879.95,0.00013972,2]
[335765529,1724482253344,-500.0,0.00013972,2]
[335765531,1724482253354,-1135.01,0.00013972,2]
[335765533,1724482253363,-500.0,0.00013972,2]
[335765535,1724482253372,-533.64,0.00013972,2]
[335765537,1724482253382,-500.0,0.00013972,2]
[335765539,1724482253391,-820.08,0.00013972,2]
[335765541,1724482253400,-500.0,0.00013972,2]
[335765543,1724482253411,-648.53,0.00013972,2]
[335765545,1724482253420,-500.0,0.00013972,2]
[335765547,1724482253429,-500.0,0.00013972,2]
[335765549,1724482253439,-681.09,0.00013972,2]
[335765572,1724482253655,-500.0,0.00013972,2]
[335765574,1724482253665,-500.0,0.00013972,2]
[335765576,1724482253675,-500.0,0.00013972,2]
[335765578,1724482253686,-587.59,0.00013972,2]
[335765580,1724482253695,-404.09093087,0.00013972,2]
[335765582,1724482253705,-542.44,0.00013972,2]
[335765584,1724482253714,-150.0,0.00013972,2]
[335765586,1724482253724,-500.0,0.00013972,2]
[335765588,1724482253733,-1161.47,0.00013972,2]
[335765590,1724482253744,-500.0,0.00013972,2]
[335765592,1724482253754,-682.7,0.00013972,2]
[335765594,1724482253763,-1157.95,0.00013972,2]
[335765597,1724482253774,-500.0,0.00013972,2]
[335765599,1724482253783,-637.43,0.00013972,2]
[335765601,1724482253793,-855.65,0.00013972,2]
[335765602,1724482253802,-1625.35,0.00013972,2]
[335765604,1724482253812,-569.44689619,0.00013972,2]
[335765606,1724482253821,-638.67,0.00013972,2]
[335765608,1724482253830,-554.25,0.00013972,2]
[335765610,1724482253840,-500.0,0.00013972,2]
[335765612,1724482253849,-151.0,0.00013972,2]
[335765614,1724482253858,-608.78,0.00013972,2]
[335765617,1724482253868,-151.0,0.00013972,2]
[335765619,1724482253878,-151.0,0.00013972,2]
[335765621,1724482253887,-500.0,0.00013972,2]
[335765623,1724482253897,-1480.412077,0.00013972,2]
[335765625,1724482253907,-1480.412077,0.00013972,2]
[335765627,1724482253920,-1480.412077,0.00013972,2]
[335765629,1724482253933,-500.0,0.00013972,2]
[335765631,1724482253943,-1480.412077,0.00013972,2]
[335765633,1724482253952,-1480.412077,0.00013972,2]
[335765635,1724482253961,-1480.412077,0.00013972,2]
[335765637,1724482253971,-945.97,0.00013972,2]
[335765639,1724482253980,-500.0,0.00013972,2]
[335765641,1724482253990,-500.0,0.00013972,2]